bitfinex/quotes_ETHUSD_20250914
["timestamp","ask_amount","ask_price","bid_price","bid_amount"]
[1757828310709,10.44777494,4678.4,4678.3,0.3177]
[1757828312498,10.92377494,4678.4,4678.3,0.3177]
[1757828312817,11.21157494,4678.4,4678.3,0.001]
[1757828313020,12.13447494,4678.4,4678.3,0.001]
[1757828314240,12.13447494,4678.4,4677.8,0.001]
[1757828314241,2.13771136,4677.9,4677.8,0.001]
[1757828314415,9.31001064,4677.9,4677.8,0.001]
[1757828314620,0.62029928,4677.9,4677.8,0.3177]
[1757828314828,6.01078622,4677.9,4677.8,1.2512]
[1757828316604,6.01081444,4677.9,4677.8,1.2512]
[1757828317423,6.01164724,4677.9,4677.8,1.2512]
[1757828318400,6.89069578,4677.9,4677.8,0.3177]
[1757828319700,6.89069641,4677.9,4677.8,0.3177]
[1757828320523,7.17849641,4677.9,4677.8,0.001]
[1757828320702,7.61259641,4677.9,4677.8,0.001]
[1757828321306,8.10139641,4677.9,4677.8,0.001]
[1757828321714,11.18694994,4677.9,4677.8,0.001]
[1757828321912,11.64754331,4677.9,4677.8,0.001]
[1757828322117,12.22332722,4677.9,4677.8,0.001]
[1757828323209,12.22331742,4677.9,4677.8,0.001]
[1757828325700,2.13795507,4677.4,4676.8,0.001]
[1757828325900,5.51043479,4676.9,4676.8,0.001]
[1757828326142,9.69262666,4676.9,4676.8,0.001]
[1757828326338,6.86652864,4676.9,4676.8,0.001]
[1757828326828,7.76642864,4676.9,4676.8,0.001]
[1757828327936,8.34193775,4676.9,4676.8,0.001]
[1757828328442,10.53160644,4676.9,4676.8,0.001]
[1757828330316,6.97460644,4676.9,4676.8,0.001]
[1757828330526,10.53460644,4676.9,4676.8,0.001]
[1757828331052,6.56394129,4676.9,4676.8,0.3]
[1757828331203,6.10334792,4676.9,4676.8,0.3]
[1757828331661,2.54334792,4676.9,4676.8,0.3]
[1757828331964,6.10434792,4676.9,4676.8,1.2556]
[1757828332453,0.40517948,4676.9,4676.8,1.2556]
[1757828332610,3.561,4676.9,4676.8,1.2556]
[1757828337731,3.575,4676.9,4676.8,1.2556]
[1757828339536,2.13803172,4677.2,4676.8,1.2556]
[1757828339741,3.575,4677.1,4676.9,0.9401]
[1757828339940,5.71307926,4677.1,4676.9,0.9401]
[1757828340139,5.71307926,4677.1,4677.0,1.2403]
[1757828340947,5.99987926,4677.1,4676.8,0.001]
[1757828341137,0.1064,4677.0,4676.8,0.001]
[1757828341338,3.574,4676.9,4676.8,0.001]
[1757828341654,5.71216844,4676.9,4676.8,0.001]
[1757828341820,5.99896844,4676.9,4676.8,0.001]
[1757828342218,5.71216844,4676.9,4676.8,0.001]
[1757828342464,5.71216844,4676.9,4676.8,0.3012]
[1757828342668,5.71216844,4676.9,4676.8,0.001]
[1757828342669,2.42496844,4676.9,4676.8,0.001]
[1757828342816,7.18177186,4676.9,4676.8,0.001]
[1757828343460,7.50084933,4676.9,4676.8,0.001]
[1757828343663,7.02024933,4676.9,4676.8,0.001]
[1757828343860,6.56154933,4676.9,4676.8,0.001]
[1757828344065,6.27474933,4676.9,4676.8,0.3012]
[1757828348586,6.27274933,4676.9,4676.8,0.3012]
[1757828350194,6.55954933,4676.9,4676.8,0.001]
[1757828350594,6.27274933,4676.9,4676.8,0.3012]
[1757828350758,6.27309435,4676.9,4676.8,0.3012]
[1757828350959,6.27309435,4676.9,4676.8,0.001]
[1757828353884,7.04049435,4676.9,4676.8,0.001]
[1757828354090,7.01859435,4676.9,4676.8,0.001]
[1757828354297,6.55989435,4676.9,4676.8,0.001]
[1757828354464,6.03059093,4676.9,4676.8,0.3012]
[1757828354656,6.03059093,4676.9,4676.8,1.2413]
[1757828354857,6.03059093,4676.9,4676.8,0.3012]
[1757828355066,0.31942249,4676.9,4676.8,0.7739]
[1757828355272,3.571,4676.9,4676.8,1.2413]
[1757828355472,6.02859093,4676.9,4676.8,1.2413]
[1757828356170,6.02866122,4676.9,4676.8,1.2413]
[1757828357171,6.02866122,4676.9,4676.8,0.7739]
[1757828357371,6.02866122,4676.9,4676.8,0.3012]
[1757828359168,5.90887779,4676.9,4676.8,0.3012]
[1757828359375,5.70916844,4676.9,4676.8,0.3012]
[1757828359570,5.9090091,4676.9,4676.8,0.3012]
[1757828359775,5.70916844,4676.9,4676.8,0.3012]
[1757828359975,3.571,4676.9,4676.8,0.3012]
[1757828360603,5.70916844,4676.9,4676.8,0.3012]
[1757828360917,3.76890393,4676.9,4676.8,0.3012]
[1757828361210,3.569,4676.9,4676.8,0.3012]
[1757828361376,3.569,4676.9,4676.8,0.001]
[1757828361377,5.82711081,4676.9,4676.8,0.001]
[1757828361580,5.70716844,4676.9,4676.8,0.001]
[1757828361782,6.02711615,4676.9,4676.8,0.001]
[1757828362008,6.31461615,4676.9,4676.8,0.001]
[1757828362316,6.74749986,4676.9,4676.8,0.001]
[1757828362694,6.31469986,4676.9,4676.8,0.001]
[1757828363590,7.25968825,4676.9,4676.8,0.001]
[1757828363790,7.69248825,4676.9,4676.8,0.001]
[1757828364209,7.25968825,4676.9,4676.8,0.001]
[1757828365514,8.14838825,4676.9,4676.8,0.001]
[1757828366488,8.14847393,4676.9,4676.8,0.001]
[1757828368683,11.14847393,4676.9,4676.8,0.001]
[1757828368915,11.60949963,4676.9,4676.8,0.001]
[1757828369116,14.37467743,4676.9,4676.8,0.001]
[1757828369421,14.95092807,4676.9,4676.8,0.001]
[1757828373226,14.37467743,4676.9,4676.8,0.001]
[1757828373998,14.25452496,4676.9,4676.8,0.001]
[1757828374342,14.37450374,4676.9,4676.8,0.001]
[1757828377919,10.37270374,4676.9,4676.8,0.001]
[1757828378121,10.43012594,4676.9,4676.8,0.001]
[1757828378324,10.71762594,4676.9,4676.8,0.001]
[1757828379040,11.15042594,4676.9,4676.8,0.001]
[1757828381730,11.60632594,4676.9,4676.8,0.001]
[1757828382141,10.71762594,4676.9,4676.8,0.001]
[1757828383907,11.15042594,4676.9,4676.8,0.001]
[1757828387349,11.63392594,4676.9,4676.8,0.001]
[1757828391363,11.63393505,4676.9,4676.8,0.001]
[1757828392331,12.21018569,4676.9,4676.8,0.001]
[1757828393462,11.72668569,4676.9,4676.8,0.001]
[1757828393641,11.29388569,4676.9,4676.8,0.001]
[1757828394159,11.29388569,4676.9,4676.8,0.2896]
[1757828394160,6.86413505,4676.9,4676.8,0.2896]
[1757828394358,9.96510935,4676.9,4676.8,1.2131]
[1757828394660,10.42613505,4676.9,4676.8,1.2131]
[1757828395078,10.42513505,4676.9,4676.8,1.2131]
[1757828395235,11.00138569,4676.9,4676.8,1.2131]
[1757828395736,11.00138569,4676.9,4676.8,0.7666]
[1757828396331,11.00138569,4676.9,4676.8,0.2896]
[1757828396958,7.73548569,4676.9,4676.8,0.001]
[1757828397166,10.71300935,4676.9,4676.8,0.001]
[1757828397366,11.17403505,4676.9,4676.8,0.001]
[1757828398067,11.174361,4676.9,4676.8,0.001]
[1757828398963,10.720561,4676.9,4676.8,0.001]
[1757828399166,10.425461,4676.9,4676.8,0.2896]
[1757828399335,6.864461,4676.9,4676.8,0.2896]
[1757828399534,10.54031995,4676.9,4676.8,0.2896]
[1757828399751,11.00134565,4676.9,4676.8,0.2896]
[1757828400568,10.4246759,4676.9,4676.8,0.2896]
[1757828401270,12.0656759,4676.9,4676.8,0.2896]
[1757828404467,12.0656759,4676.9,4676.8,0.001]
[1757828405871,12.0636759,4676.9,4676.8,0.001]
[1757828406684,12.0636759,4676.9,4676.8,0.2896]
[1757828408591,12.0636759,4676.9,4676.8,0.001]
[1757828408958,8.5056759,4676.9,4676.8,0.001]
[1757828409158,11.6026502,4676.9,4676.8,0.001]
[1757828409362,12.8125759,4676.9,4676.8,0.001]
[1757828410603,9.2545759,4676.9,4676.8,0.001]
[1757828411105,12.3505502,4676.9,4676.8,0.001]
[1757828411268,12.8115759,4676.9,4676.8,0.001]
[1757828415005,13.3018759,4676.9,4676.8,0.001]
[1757828415810,14.06977821,4676.9,4676.8,0.001]
[1757828416520,2.1383056,4676.6,4676.5,0.001]
[1757828416718,6.93082411,4676.6,4676.5,0.001]
[1757828416886,7.23782411,4676.6,4676.5,0.001]
[1757828417486,8.17732411,4676.6,4676.5,0.001]
[1757828417709,7.70352411,4676.6,4676.5,0.001]
[1757828418119,7.23782411,4676.6,4676.5,0.001]
[1757828418719,6.35391971,4676.6,4676.5,0.2994]
[1757828419096,2.45879897,4676.6,4676.5,0.7701]
[1757828419296,6.01479897,4676.6,4676.5,1.1983]
[1757828420019,6.01479897,4676.6,4676.5,0.7701]
[1757828420389,7.65579897,4676.6,4676.5,0.7701]
[1757828421832,7.65579897,4676.6,4676.5,1.1983]
[1757828422526,7.65576772,4676.6,4676.5,1.1983]
[1757828422746,7.3353056,4676.6,4676.5,1.1983]
[1757828423297,7.65576754,4676.6,4676.5,1.1983]
[1757828423733,7.53559431,4676.6,4676.5,1.1983]
[1757828423934,7.65576754,4676.6,4676.5,1.1983]
[1757828424134,7.65576754,4676.6,4676.5,0.7701]
[1757828424631,7.65576754,4676.6,4676.5,1.1983]
[1757828425136,7.65576754,4676.6,4676.5,0.2994]
[1757828425300,7.65576754,4676.6,4676.5,0.001]
[1757828425905,7.96276754,4676.6,4676.5,0.001]
[1757828427036,7.65576754,4676.6,4676.5,0.001]
[1757828427515,7.65576754,4676.6,4676.5,0.2994]
[1757828428416,7.96276754,4676.6,4676.5,0.001]
[1757828428618,9.47917194,4676.6,4676.5,0.001]
[1757828428835,9.94019764,4676.6,4676.5,0.001]
[1757828429936,9.46639764,4676.6,4676.5,0.001]
[1757828430130,9.00537194,4676.6,4676.5,0.001]
[1757828430725,4.09976754,4676.6,4676.5,0.001]
[1757828430931,7.65476727,4676.6,4676.5,0.001]
[1757828431121,7.65476727,4676.6,4676.5,0.2994]
[1757828433134,7.65476727,4676.6,4676.5,0.001]
[1757828433333,7.96176727,4676.6,4676.5,0.001]
[1757828433738,8.90126727,4676.6,4676.5,0.001]
[1757828433937,9.36229297,4676.6,4676.5,0.001]
[1757828434836,9.47817167,4676.6,4676.5,0.001]
[1757828435030,9.56374864,4676.6,4676.5,0.001]
[1757828436043,9.09804864,4676.6,4676.5,0.001]
[1757828436248,12.75474655,4676.6,4676.5,0.001]
[1757828436569,2.13839705,4676.4,4676.3,0.001]
[1757828436771,9.01285872,4676.4,4676.3,0.001]
[1757828437063,10.72038442,4676.4,4676.3,0.001]
[1757828437768,10.80597274,4676.4,4676.3,0.001]
[1757828438176,10.80590571,4676.4,4676.3,0.001]
[1757828438323,10.60568403,4676.4,4676.3,0.001]
[1757828438659,10.80590571,4676.4,4676.3,0.001]
[1757828440565,17.82590571,4676.4,4676.3,0.001]
[1757828440774,13.60190381,4676.4,4676.3,0.2994]
[1757828440950,17.15590381,4676.4,4676.3,0.2994]
[1757828441731,17.15590381,4676.4,4676.3,0.001]
[1757828442174,17.03573085,4676.4,4676.3,0.001]
[1757828442333,17.15582252,4676.4,4676.3,0.001]
[1757828442534,17.15575362,4676.4,4676.3,0.001]
[1757828443632,17.93655362,4676.4,4676.3,0.001]
[1757828443834,18.40225362,4676.4,4676.3,0.001]
[1757828444372,17.92845362,4676.4,4676.3,0.001]
[1757828444532,18.40225362,4676.4,4676.3,0.001]
[1757828444732,17.82575552,4676.4,4676.3,0.001]
[1757828445366,18.59499726,4676.4,4676.3,0.001]
[1757828445535,17.82575552,4676.4,4676.3,0.001]
[1757828446375,17.35064812,4676.4,4676.3,0.3105]
[1757828446577,16.58225552,4676.4,4676.3,0.3105]
[1757828446747,16.58225552,4676.4,4676.3,0.001]
[1757828446945,16.87355552,4676.4,4676.3,0.001]
[1757828447339,17.79405552,4676.4,4676.3,0.001]
[1757828447872,14.23705552,4676.4,4676.3,0.001]
[1757828448072,17.79505552,4676.4,4676.3,0.001]
[1757828449566,18.56344812,4676.4,4676.3,0.001]
[1757828450068,17.79505552,4676.4,4676.3,0.001]
[1757828450562,20.56037928,4676.4,4676.3,0.001]
[1757828451473,21.32877188,4676.4,4676.3,0.001]
[1757828451686,2.13853424,4676.1,4676.0,0.001]
[1757828451903,11.78310245,4676.1,4676.0,0.001]
[1757828452034,13.45392815,4676.1,4676.0,0.001]
[1757828452237,14.02994444,4676.1,4676.0,0.001]
[1757828452543,14.1155377,4676.1,4676.0,0.001]
[1757828453772,13.6463377,4676.1,4676.0,0.001]
[1757828454071,14.1155377,4676.1,4676.0,0.001]
[1757828454251,13.53952141,4676.1,4676.0,0.001]
[1757828454858,16.30484517,4676.1,4676.0,0.001]
[1757828455062,13.53952141,4676.1,4676.0,0.001]
[1757828459993,13.02539765,4676.1,4676.0,0.3137]
[1757828460161,16.58439765,4676.1,4676.0,0.3137]
[1757828460472,16.58439765,4676.1,4676.0,0.001]
[1757828460666,16.88409765,4676.1,4676.0,0.001]
[1757828461659,17.32499765,4676.1,4676.0,0.001]
[1757828463279,17.79319765,4676.1,4676.0,0.001]
[1757828463443,18.56159025,4676.1,4676.0,0.001]
[1757828464057,18.12069025,4676.1,4676.0,0.001]
[1757828464350,18.56159025,4676.1,4676.0,0.001]
[1757828465685,18.09239025,4676.1,4676.0,0.001]
[1757828466278,17.32399765,4676.1,4676.0,0.001]
[1757828466582,2.13862571,4675.9,4675.8,0.001]
[1757828466783,18.80219392,4675.9,4675.8,0.001]
[1757828466984,19.26321962,4675.9,4675.8,0.001]
[1757828467277,19.34881929,4675.9,4675.8,0.001]
[1757828468459,19.64851929,4675.9,4675.8,0.001]
[1757828468781,20.08941929,4675.9,4675.8,0.001]
[1757828469556,16.09051929,4675.9,4675.8,0.001]
[1757828469758,19.64751929,4675.9,4675.8,0.001]
[1757828470271,15.79081929,4675.9,4675.8,0.3137]
[1757828470487,19.34781929,4675.9,4675.8,0.7995]
[1757828470686,19.34781929,4675.9,4675.8,1.2543]
[1757828471388,19.34781929,4675.9,4675.8,0.3137]
[1757828472681,19.64751929,4675.9,4675.8,0.001]
[1757828472882,20.08841929,4675.9,4675.8,0.001]
[1757828473086,19.34781929,4675.9,4675.8,0.001]
[1757828473385,19.34781929,4675.9,4675.8,0.3137]
[1757828473964,19.34781929,4675.9,4675.8,0.001]
[1757828475176,13.02549553,4675.9,4675.8,0.3137]
[1757828475371,16.58249553,4675.9,4675.8,0.3137]
[1757828475580,16.58252565,4675.9,4675.8,0.3137]
[1757828476569,16.58152565,4675.9,4675.8,0.3137]
[1757828478202,20.89086428,4675.9,4675.8,0.001]
[1757828478367,20.43156428,4675.9,4675.8,0.001]
[1757828479090,21.34676428,4675.9,4675.8,0.001]
[1757828480791,2.13876293,4675.6,4675.5,1e-08]
[1757828481095,13.42136126,4675.6,4675.5,1e-08]
[1757828481295,14.65818696,4675.6,4675.5,1e-08]
[1757828481465,14.74379085,4675.6,4675.5,1e-08]
[1757828483380,14.28449085,4675.6,4675.5,1e-08]
[1757828483903,13.96807853,4675.6,4675.5,1e-08]
[1757828484068,15.25118766,4675.6,4675.5,1e-08]
[1757828484272,13.64771628,4675.6,4675.5,1e-08]
[1757828484882,10.88439252,4675.6,4675.5,0.29660001]
[1757828485096,10.88439252,4675.6,4675.5,1e-08]
[1757828485303,11.66019252,4675.6,4675.5,1e-08]
[1757828485497,11.20089252,4675.6,4675.5,1e-08]
[1757828486199,10.88439252,4675.6,4675.5,0.29660001]
[1757828486371,11.0847535,4675.6,4675.5,0.29660001]
[1757828486902,11.20497007,4675.6,4675.5,0.29660001]
[1757828487603,11.20397007,4675.6,4675.5,0.76460001]
[1757828487803,11.20397007,4675.6,4675.5,1.22060001]
[1757828488299,11.20397007,4675.6,4675.5,0.29660001]
[1757828488800,11.52047007,4675.6,4675.5,1e-08]
[1757828489012,12.43567007,4675.6,4675.5,1e-08]
[1757828489504,11.97977007,4675.6,4675.5,1e-08]
[1757828489807,11.52047007,4675.6,4675.5,1e-08]
[1757828491214,11.20397007,4675.6,4675.5,1e-08]
[1757828493796,11.52047007,4675.6,4675.5,1e-08]
[1757828494199,11.97977007,4675.6,4675.5,1e-08]
[1757828494563,11.85955349,4675.6,4675.5,1e-08]
[1757828494705,11.97977811,4675.6,4675.5,1e-08]
[1757828494906,11.97979151,4675.6,4675.5,1e-08]
[1757828495321,11.52049151,4675.6,4675.5,1e-08]
[1757828496039,11.20399151,4675.6,4675.5,1e-08]
[1757828496901,11.52049151,4675.6,4675.5,1e-08]
[1757828497097,12.43569151,4675.6,4675.5,1e-08]
[1757828499249,11.20399151,4675.6,4675.5,1e-08]
[1757828500063,11.52049151,4675.6,4675.5,1e-08]
[1757828500541,11.97979151,4675.6,4675.5,1e-08]
[1757828500937,11.52049151,4675.6,4675.5,1e-08]
[1757828503045,11.97979151,4675.6,4675.5,1e-08]
[1757828503407,11.52049151,4675.6,4675.5,1e-08]
[1757828504208,11.52049405,4675.6,4675.5,1e-08]
[1757828505039,18.54049405,4675.6,4675.5,1e-08]
[1757828505565,19.45569405,4675.6,4675.5,1e-08]
[1757828505942,18.54049405,4675.6,4675.5,1e-08]
[1757828507949,18.42026689,4675.6,4675.5,1e-08]
[1757828508156,18.54049264,4675.6,4675.5,1e-08]
[1757828508555,18.54049332,4675.6,4675.5,1e-08]
[1757828510040,18.22399332,4675.6,4675.5,1e-08]
[1757828512003,18.54009612,4675.6,4675.5,1e-08]
[1757828512303,18.54010384,4675.6,4675.5,1e-08]
[1757828513169,19.00580384,4675.6,4675.5,1e-08]
[1757828513498,19.00580435,4675.6,4675.5,1e-08]
[1757828513685,18.54010435,4675.6,4675.5,1e-08]
[1757828513996,18.22600435,4675.6,4675.5,1e-08]
[1757828514195,18.22600492,4675.6,4675.5,1e-08]
[1757828514696,18.22400492,4675.6,4675.5,1e-08]
[1757828515066,18.54010492,4675.6,4675.5,1e-08]
[1757828515497,18.22400492,4675.6,4675.5,1e-08]
[1757828515795,14.67000492,4675.6,4675.5,0.30610001]
[1757828516000,18.22400492,4675.6,4675.5,1.21670001]
[1757828516377,18.22400492,4675.6,4675.5,0.78700001]
[1757828516692,14.67000492,4675.6,4675.5,0.78700001]
[1757828516897,18.22400492,4675.6,4675.5,0.78700001]
[1757828517398,14.67000492,4675.6,4675.5,0.78700001]
[1757828517568,18.22400492,4675.6,4675.5,0.78700001]
[1757828517768,18.22400492,4675.6,4675.5,1.21670001]
[1757828519367,14.67000492,4675.6,4675.5,1.21670001]
[1757828519699,18.22400492,4675.6,4675.5,1.21670001]
[1757828520396,11.67000492,4675.6,4675.5,1.21670001]
[1757828520599,15.13840103,4675.6,4675.5,1.21670001]
[1757828520797,4.56440103,4675.6,4675.5,1.21670001]
[1757828520998,7.65737533,4675.6,4675.5,1.21670001]
[1757828521301,8.11840103,4675.6,4675.5,1.21670001]
[1757828522996,7.65737533,4675.6,4675.5,1.21670001]
[1757828524626,5.5186124,4675.6,4675.5,1.21670001]
[1757828525203,7.65737533,4675.6,4675.5,1.21670001]
[1757828525798,4.10310558,4675.6,4675.5,1.21670001]
[1757828526109,7.45699324,4675.6,4675.5,1.21670001]
[1757828526306,7.65710558,4675.6,4675.5,1.21670001]
[1757828529711,5.51834265,4675.6,4675.5,1.21670001]
[1757828529912,5.51834265,4675.6,4675.5,1.33857001]
[1757828532403,5.51834265,4675.6,4675.5,1.21670001]
[1757828532580,7.65710558,4675.6,4675.5,1.21670001]
[1757828533590,4.10310558,4675.6,4675.5,1.21670001]
[1757828533793,7.33676293,4675.6,4675.5,1.21670001]
[1757828534100,7.65710558,4675.6,4675.5,1.21670001]
[1757828534706,5.51834265,4675.6,4675.5,1.21670001]
[1757828535222,7.65710558,4675.6,4675.5,1.21670001]
[1757828535400,5.51834265,4675.6,4675.5,1.21670001]
[1757828535600,7.65710558,4675.6,4675.5,1.21670001]
[1757828535795,4.10310558,4675.6,4675.5,1.21670001]
[1757828536016,7.33676293,4675.6,4675.5,1.21670001]
[1757828536215,7.65710558,4675.6,4675.5,1.21670001]
[1757828536735,5.51834265,4675.6,4675.5,1.21670001]
[1757828538333,7.65710558,4675.6,4675.5,1.21670001]
[1757828538513,7.65683385,4675.6,4675.5,1.21670001]
[1757828538828,7.65683385,4675.6,4675.5,0.78700001]
[1757828539037,5.51807092,4675.6,4675.5,0.78700001]
[1757828539837,5.51807672,4675.6,4675.5,0.78700001]
[1757828540817,7.65683965,4675.6,4675.5,0.30610001]
[1757828543332,5.51807672,4675.6,4675.5,0.30610001]
[1757828543501,5.51807672,4675.6,4675.5,0.77100001]
[1757828543707,5.51807672,4675.6,4675.5,1.23060001]
[1757828543927,5.51807672,4675.6,4675.5,0.77100001]
[1757828544232,7.65683965,4675.6,4675.5,0.30610001]
[1757828544431,5.51807672,4675.6,4675.5,0.30610001]
[1757828545437,7.65683965,4675.6,4675.5,0.30610001]
[1757828547004,7.53684886,4675.6,4675.5,0.30610001]
[1757828547434,7.65695975,4675.6,4675.5,0.30610001]
[1757828547742,7.33676293,4675.6,4675.5,0.30610001]
[1757828547910,7.45683674,4675.6,4675.5,0.30610001]
[1757828548238,7.65695975,4675.6,4675.5,0.30610001]
[1757828548436,7.33676293,4675.6,4675.5,0.30610001]
[1757828548637,3.90286719,4675.6,4675.5,0.30610001]
[1757828548843,7.45586719,4675.6,4675.5,0.30610001]
[1757828549543,7.33576293,4675.6,4675.5,0.30610001]
[1757828550410,7.65616776,4675.6,4675.5,0.30610001]
[1757828551231,7.65616776,4675.6,4675.5,1e-08]
[1757828552242,7.96606776,4675.6,4675.5,1e-08]
[1757828552433,8.88856776,4675.6,4675.5,1e-08]
[1757828553122,8.39646776,4675.6,4675.5,1e-08]
[1757828553850,7.96606776,4675.6,4675.5,1e-08]
[1757828555362,7.65616776,4675.6,4675.5,0.30480001]
[1757828556059,7.65616776,4675.6,4675.5,1e-08]
[1757828556422,4.90516776,4675.6,4675.5,1e-08]
[1757828556628,9.64785433,4675.6,4675.5,1e-08]
[1757828556864,9.73344393,4675.6,4675.5,1e-08]
[1757828557065,10.19487759,4675.6,4675.5,1e-08]
[1757828557927,13.19487759,4675.6,4675.5,1e-08]
[1757828558131,13.77196002,4675.6,4675.5,1e-08]
[1757828558363,13.77159104,4675.6,4675.5,1e-08]
[1757828558761,13.19487759,4675.6,4675.5,1e-08]
[1757828561868,13.77092635,4675.6,4675.5,1e-08]
[1757828562978,13.19487759,4675.6,4675.5,1e-08]
[1757828563483,8.40947759,4675.6,4675.5,0.30480001]
[1757828563662,11.20319102,4675.6,4675.5,1.22580001]
[1757828563966,11.20319102,4675.6,4675.5,0.77110001]
[1757828564169,11.51309102,4675.6,4675.5,1e-08]
[1757828564369,12.43559102,4675.6,4675.5,1e-08]
[1757828570700,11.51309102,4675.6,4675.5,1e-08]
[1757828570898,11.20319102,4675.6,4675.5,1e-08]
[1757828571485,11.48949102,4675.6,4675.5,1e-08]
[1757828571969,11.20319102,4675.6,4675.5,0.31180001]
[1757828572175,11.20319102,4675.6,4675.5,1e-08]
[1757828572374,12.44119102,4675.6,4675.5,1e-08]
[1757828575792,11.48949102,4675.6,4675.5,1e-08]
[1757828576684,11.96009102,4675.6,4675.5,1e-08]
[1757828577009,12.41259102,4675.6,4675.5,1e-08]
[1757828578091,12.41229787,4675.6,4675.5,1e-08]
[1757828580990,12.41213958,4675.6,4675.5,1e-08]
[1757828584340,12.41221839,4675.6,4675.5,1e-08]
[1757828584990,11.95971839,4675.6,4675.5,1e-08]
[1757828585605,12.41221839,4675.6,4675.5,1e-08]
[1757828586334,15.1780878,4675.6,4675.5,1e-08]
[1757828586736,15.94722956,4675.6,4675.5,1e-08]
[1757828589418,2.13885442,4675.4,4675.3,0.001]
[1757828589744,9.01188662,4675.4,4675.3,0.001]
[1757828589928,10.71222028,4675.4,4675.3,0.001]
[1757828590243,10.79783058,4675.4,4675.3,0.001]
[1757828591747,17.81783058,4675.4,4675.3,0.001]
[1757828592752,17.36533058,4675.4,4675.3,0.001]
[1757828593152,16.89473058,4675.4,4675.3,0.001]
[1757828595615,16.89505686,4675.4,4675.3,0.001]
[1757828596477,17.32805686,4675.4,4675.3,0.001]
[1757828598678,13.02625686,4675.4,4675.3,0.2999]
[1757828598879,16.57925686,4675.4,4675.3,0.2999]
[1757828599571,16.57925686,4675.4,4675.3,1.2359]
[1757828602278,13.02625686,4675.4,4675.3,1.2359]
[1757828602481,16.57925686,4675.4,4675.3,1.2359]
[1757828603166,16.57921932,4675.4,4675.3,1.2359]
[1757828603588,13.02621932,4675.4,4675.3,0.7775]
[1757828603886,16.57921932,4675.4,4675.3,1.2359]
[1757828604191,13.02621932,4675.4,4675.3,1.2359]
[1757828604361,10.02621932,4675.4,4675.3,1.2359]
[1757828604556,4.3347546,4675.4,4675.3,1.35969]
[1757828604768,3.553,4675.4,4675.3,1.35969]
[1757828605467,5.69185442,4675.4,4675.3,1.35969]
[1757828605667,3.87330748,4675.4,4675.3,1.35969]
[1757828605983,3.553,4675.4,4675.3,1.35969]
[1757828606194,6.0121619,4675.4,4675.3,1.35969]
[1757828606358,6.0121619,4675.4,4675.3,1.2359]
[1757828606909,6.01201927,4675.4,4675.3,1.2359]
[1757828610362,3.87316485,4675.4,4675.3,1.2359]
[1757828610563,3.553,4675.4,4675.3,1.2359]
[1757828611086,3.87316485,4675.4,4675.3,1.2359]
[1757828611494,6.01101927,4675.4,4675.3,1.2359]
[1757828613372,5.81096131,4675.4,4675.3,1.2359]
[1757828614106,6.01081399,4675.4,4675.3,1.2359]
[1757828614292,3.67210689,4675.4,4675.3,1.2359]
[1757828614609,3.552,4675.4,4675.3,1.2359]
[1757828614803,5.81096131,4675.4,4675.3,1.2359]
[1757828614973,3.67210689,4675.4,4675.3,1.2359]
[1757828615410,5.81096131,4675.4,4675.3,1.2359]
[1757828618413,2.25896131,4675.4,4675.3,0.7775]
[1757828618622,5.69085442,4675.4,4675.3,0.7775]
[1757828618781,5.81096131,4675.4,4675.3,0.7775]
[1757828619182,2.25896131,4675.4,4675.3,0.7775]
[1757828619412,5.69085442,4675.4,4675.3,0.7775]
[1757828619711,5.81096131,4675.4,4675.3,1.35969]
[1757828623215,5.81096131,4675.4,4675.3,1.2359]
[1757828623417,5.81096131,4675.4,4675.3,0.7775]
[1757828624817,5.81096131,4675.4,4675.3,0.2999]
[1757828625820,5.81077308,4675.4,4675.3,0.2999]
[1757828627328,6.01070059,4675.4,4675.3,0.2999]
[1757828628313,6.01070059,4675.4,4675.3,0.001]
[1757828631736,6.01070059,4675.4,4675.3,0.2886]
[1757828631919,6.01070059,4675.4,4675.3,0.001]
[1757828632533,6.29890059,4675.4,4675.3,0.001]
[1757828634623,6.29920059,4675.4,4675.3,0.001]
[1757828635649,6.29965282,4675.4,4675.3,0.001]
[1757828637241,6.01115282,4675.4,4675.3,0.001]
[1757828637410,6.01115282,4675.4,4675.3,0.7808]
[1757828637611,6.01115282,4675.4,4675.3,1.238]
[1757828637837,2.45915282,4675.4,4675.3,1.238]
[1757828638044,5.80977308,4675.4,4675.3,1.238]
[1757828638241,6.01015282,4675.4,4675.3,1.238]
[1757828639212,6.01015282,4675.4,4675.3,0.7808]
[1757828639722,6.01015282,4675.4,4675.3,1.238]
[1757828640914,0.3202984,4675.4,4675.3,0.7808]
[1757828641141,3.67091866,4675.4,4675.3,1.36413895]
[1757828641341,3.67091866,4675.4,4675.3,1.238]
[1757828642024,3.8712984,4675.4,4675.3,1.238]
[1757828643648,3.87127087,4675.4,4675.3,1.238]
[1757828644830,6.01012529,4675.4,4675.3,1.238]
[1757828645034,6.29862529,4675.4,4675.3,0.001]
[1757828645353,7.21172529,4675.4,4675.3,0.001]
[1757828649353,7.29732313,4675.4,4675.3,0.001]
[1757828651034,6.97705226,4675.4,4675.3,0.001]
[1757828651241,7.29742956,4675.4,4675.3,0.001]
[1757828655574,2.54482956,4675.4,4675.3,0.3091]
[1757828655775,5.89559375,4675.4,4675.3,1.2443]
[1757828656062,6.09582956,4675.4,4675.3,0.792]
[1757828656273,6.01023172,4675.4,4675.3,0.3091]
[1757828656957,6.01023172,4675.4,4675.3,0.3142]
[1757828657976,6.76433172,4675.4,4675.3,0.001]
[1757828658972,7.24883172,4675.4,4675.3,0.001]
[1757828660743,6.31953172,4675.4,4675.3,0.001]
[1757828662447,6.31936575,4675.4,4675.3,0.001]
[1757828665281,2.45906575,4675.4,4675.3,0.3142]
[1757828665480,5.80993367,4675.4,4675.3,0.3142]
[1757828665685,6.01006575,4675.4,4675.3,0.3142]
[1757828666577,6.76416575,4675.4,4675.3,0.001]
[1757828666902,7.24866575,4675.4,4675.3,0.001]
[1757828667450,6.76416575,4675.4,4675.3,0.001]